fUSD/lending_fUSD_20240220
["ID","MTS","AMOUNT","RATE_DAILY","PERIOD"]
[314553712,1708419052117,-1235.44,0.0003589,2]
[314553713,1708419052126,-500.0,0.0003589,2]
[314553714,1708419052136,-654.59,0.0003589,2]
[314553715,1708419052145,-500.0,0.0003589,2]
[314553716,1708419052155,-500.0,0.0003589,2]
[314553717,1708419052164,-1363.22,0.0003589,2]
[314553718,1708419052174,-4559.11,0.0003589,2]
[314553719,1708419052183,-928.63,0.0003589,2]
[314553720,1708419052192,-1175.67,0.0003589,2]
[314553721,1708419052202,-673.84,0.0003589,2]
[314553722,1708419052211,-500.0,0.0003589,2]
[314553723,1708419052220,-500.0,0.0003589,2]
[314553724,1708419052229,-653.63,0.0003589,2]
[314553725,1708419052239,-620.61,0.0003589,2]
[314553726,1708419052249,-500.0,0.0003589,2]
[314553727,1708419052259,-735.52,0.0003589,2]
[314553728,1708419052268,-1190.32,0.0003589,2]
[314553729,1708419052278,-919.21,0.0003589,2]
[314553730,1708419052287,-500.0,0.0003589,2]
[314553731,1708419052297,-778.11,0.0003589,2]
[314553732,1708419052306,-500.0,0.0003589,2]
[314553733,1708419052315,-1248.9,0.0003589,2]
[314553734,1708419052324,-1331.63,0.0003589,2]
[314553735,1708419052334,-500.0,0.0003589,2]
[314553736,1708419052343,-500.0,0.0003589,2]
[314553737,1708419052353,-1305.16,0.0003589,2]
[314553738,1708419052362,-500.0,0.0003589,2]
[314553739,1708419052372,-801.07,0.0003589,2]
[314553740,1708419052381,-500.0,0.0003589,2]
[314553741,1708419052390,-989.45,0.0003589,2]
[314553742,1708419052400,-2608.12,0.0003589,2]
[314553743,1708419052409,-500.0,0.0003589,2]
[314553744,1708419052418,-500.0,0.0003589,2]
[314553745,1708419052427,-500.0,0.0003589,2]
[314553746,1708419052436,-701.6,0.0003589,2]
[314553747,1708419052445,-706.94,0.0003589,2]
[314553748,1708419052455,-852.96,0.0003589,2]
[314553749,1708419052464,-500.0,0.0003589,2]
[314553750,1708419052473,-528.70718664,0.0003589,2]
[314553751,1708419052483,-1935.34,0.0003589,2]
[314553752,1708419052493,-4970.17,0.0003589,2]
[314553753,1708419052502,-922.97,0.0003589,2]
[314553754,1708419052511,-500.0,0.0003589,2]
[314553755,1708419052521,-2050.13,0.0003589,2]
[314553756,1708419052530,-500.0,0.0003589,2]
[314553757,1708419052540,-500.0,0.0003589,2]
[314553758,1708419052549,-500.0,0.0003589,2]
[314553759,1708419052558,-500.0,0.0003589,2]
[314553760,1708419052567,-500.0,0.0003589,2]
[314553761,1708419052577,-500.0,0.0003589,2]
[314553762,1708419052586,-500.0,0.0003589,2]
[314553763,1708419052595,-719.8,0.0003589,2]
[314553764,1708419052606,-883.52,0.0003589,2]
[314553765,1708419052615,-500.0,0.0003589,2]
[314553766,1708419052625,-500.0,0.0003589,2]
[314553767,1708419052635,-500.0,0.0003589,2]
[314553768,1708419052645,-1705.76,0.0003589,2]
[314553769,1708419052654,-500.0,0.0003589,2]
[314553770,1708419052663,-500.0,0.0003589,2]
[314553771,1708419052672,-928.51,0.0003589,2]
[314553772,1708419052682,-500.0,0.0003589,2]
[314553773,1708419052691,-504.06,0.0003589,2]
[314553774,1708419052700,-500.0,0.0003589,2]
[314553775,1708419052710,-500.0,0.0003589,2]
[314553776,1708419052719,-500.0,0.0003589,2]
[314553777,1708419052728,-500.0,0.0003589,2]
[314553778,1708419052738,-957.17,0.0003589,2]
[314553779,1708419052747,-500.0,0.0003589,2]
[314553780,1708419052756,-883.47,0.0003589,2]
[314553781,1708419052765,-500.0,0.0003589,2]
[314553782,1708419052775,-500.0,0.0003589,2]
[314553783,1708419052784,-1392.98,0.0003589,2]
[314553784,1708419052794,-1172.81,0.0003589,2]
[314553785,1708419052803,-500.0,0.0003589,2]
[314553786,1708419052812,-500.0,0.0003589,2]
[314553787,1708419052822,-948.81,0.0003589,2]
[314553788,1708419052831,-1575.6,0.0003589,2]
[314553789,1708419052841,-693.09,0.0003589,2]
[314553790,1708419052855,-500.0,0.0003589,2]
[314553791,1708419052864,-500.0,0.0003589,2]
[314553792,1708419052873,-500.0,0.0003589,2]
[314553793,1708419052882,-500.0,0.0003589,2]
[314553794,1708419052892,-500.0,0.0003589,2]
[314553795,1708419052901,-500.0,0.0003589,2]
[314553796,1708419052911,-695.54,0.0003589,2]
[314553797,1708419052920,-677.28,0.0003589,2]
[314553798,1708419052930,-559.85,0.0003589,2]
[314553799,1708419052939,-500.0,0.0003589,2]
[314553800,1708419052948,-500.0,0.0003589,2]
[314553801,1708419052957,-340.672385,0.0003589,2]
[314553802,1708419052966,-500.0,0.0003589,2]
[314553803,1708419052975,-1691.35,0.0003589,2]
[314553804,1708419052984,-500.0,0.0003589,2]
[314553805,1708419052993,-500.0,0.0003589,2]
[314553806,1708419053003,-943.33,0.0003589,2]
[314553807,1708419053012,-500.0,0.0003589,2]
[314553808,1708419053021,-500.0,0.0003589,2]
[314553809,1708419053030,-500.0,0.0003589,2]
[314553810,1708419053039,-520.39,0.0003589,2]
[314553811,1708419053049,-500.0,0.0003589,2]
[314553812,1708419053058,-1029.71,0.0003589,2]
[314553813,1708419053067,-758.81,0.0003589,2]
[314553814,1708419053077,-765.95,0.0003589,2]
[314553815,1708419053086,-500.0,0.0003589,2]
[314553816,1708419053096,-500.0,0.0003589,2]
[314553817,1708419053105,-500.0,0.0003589,2]
[314553818,1708419053115,-899.86,0.0003589,2]
[314553819,1708419053124,-500.0,0.0003589,2]
[314553820,1708419053133,-6906.88933276,0.00035899,8]
[314553821,1708419053142,-165.73906841,0.000359,2]
[314553822,1708419053151,-161.15663546,0.000359,2]
[314553823,1708419053161,-1979.497093,0.000359,22]
[314553824,1708419053169,-15065.92868038,0.000359,2]
[314553825,1708419053178,-199.18734602,0.000359,7]
[314553826,1708419053187,-443.9310521,0.000359,2]
[314553827,1708419053197,-2172.72499202,0.000359,2]
[314553828,1708419053206,-150.0,0.00035922,2]
[314553829,1708419053215,-150.0,0.00035924,2]
[314553830,1708419053224,-150.0,0.00035924,2]
[314553831,1708419053233,-212.48,0.00035928,2]
[314553832,1708419053242,-6906.88933276,0.00035935,8]
[314553833,1708419053251,-150.0,0.00035947,2]
[314553834,1708419053260,-151.0212031,0.00035948,2]
[314553835,1708419053269,-302.4026063,0.00035949,2]
[314553836,1708419053279,-150.0,0.0003597,2]
[314553837,1708419053288,-6906.88933276,0.00035971,8]
[314553838,1708419053297,-2000.0,0.00035972,2]
[314553839,1708419053306,-200.0,0.00035972,2]
[314553840,1708419053315,-2000.0,0.00035972,2]
[314553841,1708419053323,-200.0,0.00035972,2]
[314553842,1708419053333,-2000.0,0.00035972,2]
[314553843,1708419053342,-200.0,0.00035972,2]
[314553844,1708419053351,-200.0,0.00035972,2]
[314553845,1708419053360,-150.0,0.00035974,2]
[314553846,1708419053370,-6000.0,0.0003598,2]
[314553847,1708419053379,-500.0,0.0003598,2]
[314553848,1708419053388,-500.0,0.0003598,2]
[314553849,1708419053398,-500.0,0.0003598,2]
[314553850,1708419053407,-500.0,0.0003598,2]
[314553851,1708419053417,-500.0,0.0003598,2]
[314553852,1708419053426,-500.0,0.0003598,2]
[314553853,1708419053436,-500.0,0.0003598,2]
[314553854,1708419053446,-323.03,0.0003598,2]
[314553855,1708419053455,-500.0,0.0003598,2]
[314553856,1708419053465,-500.0,0.0003598,2]
[314553857,1708419053475,-500.0,0.0003598,2]
[314553858,1708419053485,-500.0,0.0003598,2]
[314553859,1708419053494,-500.0,0.0003598,2]
[314553860,1708419053504,-500.0,0.0003598,2]
[314553861,1708419053513,-500.0,0.0003598,2]
[314553862,1708419053523,-500.0,0.0003598,2]
[314553863,1708419053532,-500.0,0.0003598,2]
[314553864,1708419053542,-500.0,0.0003598,2]
[314553865,1708419053551,-500.0,0.0003598,2]
[314553866,1708419053561,-500.0,0.0003598,2]
[314553867,1708419053570,-500.0,0.0003598,2]
[314553868,1708419053579,-500.0,0.0003598,2]
[314553869,1708419053589,-500.0,0.0003598,2]
[314553870,1708419053599,-500.0,0.0003598,2]
[314553871,1708419053608,-500.0,0.0003598,2]
[314553872,1708419053617,-500.0,0.0003598,2]
[314553873,1708419053627,-500.0,0.0003598,2]
[314553874,1708419053637,-500.0,0.0003598,2]
[314553875,1708419053646,-500.0,0.0003598,2]
[314553876,1708419053656,-500.0,0.0003598,2]
[314553877,1708419053665,-500.0,0.0003598,2]
[314553878,1708419053675,-500.0,0.0003598,2]
[314553879,1708419053684,-500.0,0.0003598,2]
[314553880,1708419053694,-500.0,0.0003598,2]
[314553881,1708419053703,-500.0,0.0003598,2]
[314553882,1708419053712,-500.0,0.0003598,2]
[314553883,1708419053722,-607.23,0.0003598,2]
[314553884,1708419053732,-500.0,0.0003598,2]
[314553885,1708419053741,-514.95,0.0003598,2]
[314553886,1708419053751,-201.13069914,0.0003599,2]
[314553887,1708419053761,-150.0,0.00035991,2]
[314553888,1708419053771,-150.0,0.00035996,2]
[314553889,1708419053780,-201.13069914,0.00035998,2]
[314553890,1708419053790,-1313686.99073521,0.00036,2]
[314553891,1708419054226,-8325.99849633,0.00036,2]
[314553892,1708419054240,-3878.34820416,0.00036,2]
[314553893,1708419054252,-1323.83477474,0.00036,2]
[314553894,1708419054264,-608.752865,0.00036,2]
[314553895,1708419054274,-428.15139348,0.00036,2]
[314553896,1708419054306,-149.39221544,0.00036,2]
[314553897,1708419054315,-268.6845799,0.00036,37]
[314553898,1708419054327,-548.045788,0.00036,37]
[314553899,1708419054477,-3127.9908863,0.00036,37]
[314553900,1708419054487,-10599.12534446,0.00036,2]
[314553901,1708419054500,-1143.08329104,0.00036,2]
[314553902,1708419054933,-482.42415829,0.00036,2]
[314553903,1708419054981,-4330.35428494,0.00036,2]
[314553904,1708419054993,-2875.63756983,0.00036,2]
[314553905,1708419055003,-358.97225773,0.00036,2]
[314553906,1708419055013,-1042.23215095,0.00036,2]
[314553907,1708419055023,-5143.54810441,0.00036008,8]
[314553908,1708419055081,-512.646182,0.00036008,8]
[314553909,1708419055097,-637.26935831,0.00036008,8]
[314553910,1708419055110,-613.42568804,0.00036008,8]
[314553911,1708419055120,-150.0,0.00036021,2]
[314553912,1708419055130,-1500.0,0.00036022,2]
[314553913,1708419055357,-171.73,0.00036033,2]
[314553914,1708419055367,-210.0,0.00036034,6]
[314553915,1708419055377,-1543.08324433,0.0003604,2]
[314553916,1708419055386,-6163.76106763,0.00036044,8]
[314553917,1708419055398,-743.12826513,0.00036044,8]
[314553918,1708419055407,-151.0212031,0.00036048,6]
[314553919,1708419055417,-150.0,0.00036065,2]
[314553920,1708419055427,-732.37825385,0.0003608,8]
[314553921,1708419055845,-500.0,0.00035616,2]
[314553922,1708419055856,-500.0,0.0003589,2]
[314553923,1708419055865,-1474.6128186,0.0003608,8]
[314553924,1708419055877,-4699.89826031,0.0003608,8]
[314553925,1708419055886,-300.0,0.00036082,2]
[314553926,1708419055896,-150.0,0.00036088,2]
[314553927,1708419055905,-212.48,0.00036102,2]
[314553928,1708419055915,-200.0,0.00036105,3]
[314553929,1708419055925,-155.28,0.00036116,2]
[314553930,1708419055934,-6906.88933276,0.00036116,8]
[314553931,1708419055944,-150.0,0.00036118,2]
[314553932,1708419055953,-150.0,0.0003613,2]
[314553933,1708419055963,-150.0,0.00036136,2]
[314553934,1708419055972,-6779.7986787,0.00036139,2]
[314553935,1708419055982,-151.0212031,0.00036148,6]
[314553936,1708419055991,-6906.88933276,0.00036153,9]
[314553937,1708419056000,-500.0,0.00036164,2]
[314553938,1708419056009,-500.0,0.00036164,2]
[314553939,1708419056018,-500.0,0.00036164,2]
[314553940,1708419056027,-500.0,0.00036164,2]
[314553941,1708419056036,-500.0,0.00036164,2]
[314553942,1708419056046,-500.0,0.00036164,2]
[314553943,1708419056055,-500.0,0.00036164,2]
[314553944,1708419056065,-500.0,0.00036164,2]
[314553945,1708419056075,-500.0,0.00036164,2]
[314553946,1708419056085,-500.0,0.00036164,2]
[314553947,1708419056094,-500.0,0.00036164,2]
[314553948,1708419056104,-500.0,0.00036164,2]
[314553949,1708419056113,-594.77549779,0.00036164,2]
[314553950,1708419056123,-789.97,0.00036164,2]
[314553951,1708419056132,-500.0,0.00036164,2]
[314553952,1708419056141,-500.0,0.00036164,2]
[314553953,1708419056150,-500.0,0.00036164,2]
[314553954,1708419056160,-221.28504792,0.00036164,2]
[314553955,1708419056169,-500.0,0.00036164,2]
[314553956,1708419056179,-500.0,0.00036164,2]
[314553957,1708419056188,-403.42604527,0.00036164,2]
[314553958,1708419056197,-500.0,0.00036164,2]
[314553959,1708419056207,-222.61903856,0.00036164,2]
[314553960,1708419056216,-430.04435386,0.00036164,2]
[314553961,1708419056225,-500.0,0.00036164,2]
[314553962,1708419056235,-500.0,0.00036164,2]
[314553963,1708419056244,-500.0,0.00036164,2]
[314553964,1708419056254,-500.0,0.00036164,2]
[314553965,1708419056263,-500.0,0.00036164,2]
[314553966,1708419056272,-500.0,0.00036164,2]
[314553967,1708419056281,-500.0,0.00036164,2]
[314553968,1708419056291,-500.0,0.00036164,2]
[314553969,1708419056300,-500.0,0.00036164,2]
[314553970,1708419056309,-500.0,0.00036164,2]
[314553971,1708419056319,-500.0,0.00036164,2]
[314553972,1708419056328,-500.0,0.00036164,2]
[314553973,1708419056338,-222.9854351,0.00036164,2]
[314553974,1708419056347,-500.0,0.00036164,2]
[314553975,1708419056356,-500.0,0.00036164,2]
[314553976,1708419056366,-500.0,0.00036164,2]
[314553977,1708419056375,-500.0,0.00036164,2]
[314553978,1708419056384,-500.0,0.00036164,2]
[314553979,1708419056394,-500.0,0.00036164,2]
[314553980,1708419056403,-500.0,0.00036164,2]
[314553981,1708419056412,-500.0,0.00036164,2]
[314553982,1708419056421,-500.0,0.00036164,2]
[314553983,1708419056431,-500.0,0.00036164,2]
[314553984,1708419056440,-500.0,0.00036164,2]
[314553985,1708419056449,-500.0,0.00036164,2]
[314553986,1708419056459,-500.0,0.00036164,2]
[314553987,1708419056468,-500.0,0.00036164,2]
[314553988,1708419056477,-500.0,0.00036164,2]
[314553989,1708419056487,-500.0,0.00036164,2]
[314553990,1708419056497,-500.0,0.00036164,2]
[314553991,1708419056506,-237.92894086,0.00036164,2]
[314553992,1708419056516,-500.0,0.00036164,2]
[314553993,1708419056525,-500.0,0.00036164,2]
[314553994,1708419056534,-500.0,0.00036164,2]
[314553995,1708419056543,-597.28940292,0.00036164,2]
[314553996,1708419056552,-1180.62,0.00036164,2]
[314553997,1708419056562,-500.0,0.00036164,2]
[314553998,1708419056571,-500.0,0.00036164,2]
[314553999,1708419056580,-500.0,0.00036164,2]
[314554000,1708419056589,-411.96,0.00036164,2]
[314554001,1708419056599,-500.0,0.00036164,2]
[314554002,1708419056608,-500.0,0.00036164,2]
[314554003,1708419056617,-500.0,0.00036164,2]
[314554004,1708419056626,-1187.94,0.00036164,2]
[314554005,1708419056636,-500.0,0.00036164,2]
[314554006,1708419056647,-500.0,0.00036164,2]
[314554007,1708419056657,-500.0,0.00036164,2]
[314554008,1708419056667,-500.0,0.00036164,2]
[314554009,1708419056677,-500.0,0.00036164,2]
[314554010,1708419056688,-1191.93,0.00036164,2]
[314554011,1708419056697,-500.0,0.00036164,2]
[314554012,1708419056707,-500.0,0.00036164,2]
[314554013,1708419056716,-500.0,0.00036164,2]
[314554014,1708419056725,-500.0,0.00036164,2]
[314554015,1708419056735,-500.0,0.00036164,2]
[314554016,1708419056744,-500.0,0.00036164,2]
[314554017,1708419056754,-673.7,0.00036164,2]
[314554018,1708419056763,-500.0,0.00036164,2]
[314554019,1708419056773,-277.32285859,0.00036164,2]
[314554020,1708419056783,-500.0,0.00036164,2]
[314554021,1708419056794,-500.0,0.00036164,2]
[314554022,1708419056804,-500.0,0.00036164,2]
[314554023,1708419056815,-500.0,0.00036164,2]
[314554024,1708419056825,-500.0,0.00036164,2]
[314554025,1708419056834,-500.0,0.00036164,2]
[314554026,1708419056845,-500.0,0.00036164,2]
[314554027,1708419056860,-500.0,0.00036164,2]
[314554028,1708419056869,-500.0,0.00036164,2]
[314554029,1708419056879,-500.0,0.00036164,2]
[314554030,1708419056891,-500.0,0.00036164,2]
[314554031,1708419056900,-500.0,0.00036164,2]
[314554032,1708419056909,-500.0,0.00036164,2]
[314554033,1708419056918,-154.4229183,0.00036164,2]
[314554034,1708419056929,-500.0,0.00036164,2]
[314554035,1708419056938,-500.0,0.00036164,2]
[314554036,1708419056947,-500.0,0.00036164,2]
[314554037,1708419056956,-500.0,0.00036164,2]
[314554038,1708419056965,-500.0,0.00036164,2]
[314554039,1708419056974,-500.0,0.00036164,2]
[314554040,1708419056984,-500.0,0.00036164,2]
[314554041,1708419056993,-500.0,0.00036164,2]
[314554042,1708419057002,-500.0,0.00036164,2]
[314554043,1708419057011,-500.0,0.00036164,2]
[314554044,1708419057020,-500.0,0.00036164,2]
[314554045,1708419057030,-500.0,0.00036164,2]
[314554046,1708419057039,-500.0,0.00036164,2]
[314554047,1708419057048,-500.0,0.00036164,2]
[314554048,1708419057057,-500.0,0.00036164,2]
[314554049,1708419057066,-500.0,0.00036164,2]
[314554050,1708419057076,-500.0,0.00036164,2]
[314554051,1708419057085,-500.0,0.00036164,2]
[314554052,1708419057094,-500.0,0.00036164,2]
[314554053,1708419057103,-500.0,0.00036164,2]
[314554054,1708419057112,-500.0,0.00036164,2]
[314554055,1708419057122,-500.0,0.00036164,2]
[314554056,1708419057131,-500.0,0.00036164,2]
[314554057,1708419057140,-500.0,0.00036164,2]
[314554058,1708419057149,-500.0,0.00036164,2]
[314554059,1708419057158,-500.0,0.00036164,2]
[314554060,1708419057168,-500.0,0.00036164,2]
[314554061,1708419057177,-500.0,0.00036164,2]
[314554062,1708419057187,-500.0,0.00036164,2]
[314554063,1708419057196,-500.0,0.00036164,2]
[314554064,1708419057206,-500.0,0.00036164,2]
[314554065,1708419057216,-500.0,0.00036164,2]
[314554066,1708419057225,-500.0,0.00036164,2]
[314554067,1708419057234,-500.0,0.00036164,2]
[314554068,1708419057244,-500.0,0.00036164,2]
[314554069,1708419057253,-500.0,0.00036164,2]
[314554070,1708419057263,-500.0,0.00036164,2]
[314554071,1708419057273,-500.0,0.00036164,2]
[314554072,1708419057283,-500.0,0.00036164,2]
[314554073,1708419057293,-256.59506872,0.00036164,2]
[314554074,1708419057302,-500.0,0.00036164,2]
[314554075,1708419057312,-211.27029601,0.00036164,2]
[314554076,1708419057321,-500.0,0.00036164,2]
[314554077,1708419057330,-500.0,0.00036164,2]
[314554078,1708419057340,-500.0,0.00036164,2]
[314554079,1708419057350,-500.0,0.00036164,2]
[314554080,1708419057360,-500.0,0.00036164,2]
[314554081,1708419057370,-500.0,0.00036164,2]
[314554082,1708419057379,-500.0,0.00036164,2]
[314554083,1708419057389,-500.0,0.00036164,2]
[314554084,1708419057398,-500.0,0.00036164,2]
[314554085,1708419057408,-500.0,0.00036164,2]
[314554086,1708419057417,-500.0,0.00036164,2]
[314554087,1708419057426,-500.0,0.00036164,2]
[314554088,1708419057435,-500.0,0.00036164,2]
[314554089,1708419057444,-500.0,0.00036164,2]
[314554090,1708419057453,-500.0,0.00036164,2]
[314554091,1708419057463,-500.0,0.00036164,2]
[314554092,1708419057472,-500.0,0.00036164,2]
[314554093,1708419057481,-526.13140372,0.00036164,2]
[314554094,1708419057491,-500.0,0.00036164,2]
[314554095,1708419057500,-500.0,0.00036164,2]
[314554096,1708419057509,-500.0,0.00036164,2]
[314554097,1708419057518,-549.1,0.00036164,2]
[314554098,1708419057528,-500.0,0.00036164,2]
[314554099,1708419057537,-500.0,0.00036164,2]
[314554100,1708419057546,-749.79,0.00036164,2]
[314554101,1708419057556,-500.0,0.00036164,2]
[314554102,1708419057565,-500.0,0.00036164,2]
[314554103,1708419057574,-500.0,0.00036164,2]
[314554104,1708419057584,-500.0,0.00036164,2]
[314554105,1708419057593,-500.0,0.00036164,2]
[314554106,1708419057603,-500.0,0.00036164,2]
[314554107,1708419057613,-500.0,0.00036164,2]
[314554108,1708419057623,-500.0,0.00036164,2]
[314554109,1708419057632,-500.0,0.00036164,2]
[314554110,1708419057641,-500.0,0.00036164,2]
[314554111,1708419057651,-500.0,0.00036164,2]
[314554112,1708419057661,-500.0,0.00036164,2]
[314554113,1708419057671,-153.14,0.00036164,2]
[314554114,1708419057681,-500.0,0.00036164,2]
[314554115,1708419057690,-500.0,0.00036164,2]
[314554116,1708419057699,-178.94613824,0.00036164,2]
[314554117,1708419057807,-321.05386176,0.00036164,2]
[314554118,1708419057817,-516.94624825,0.00036164,2]
[314554119,1708419057826,-500.0,0.00036164,2]
[314554120,1708419057836,-500.0,0.00036164,2]
[314554121,1708419057845,-500.0,0.00036164,2]
[314554122,1708419057859,-500.0,0.00036164,2]
[314554123,1708419057868,-500.0,0.00036164,2]
[314554124,1708419057878,-500.0,0.00036164,2]
[314554125,1708419057887,-500.0,0.00036164,2]
[314554126,1708419057897,-500.0,0.00036164,2]
[314554127,1708419057907,-500.0,0.00036164,2]
[314554128,1708419057917,-500.0,0.00036164,2]
[314554129,1708419057926,-519.3,0.00036164,2]
[314554130,1708419057936,-500.0,0.00036164,2]
[314554131,1708419057946,-500.0,0.00036164,2]
[314554132,1708419057955,-500.0,0.00036164,2]
[314554133,1708419057964,-500.0,0.00036164,2]
[314554134,1708419057974,-500.0,0.00036164,2]
[314554135,1708419057983,-235.66812718,0.00036164,2]
[314554136,1708419057992,-560.38,0.00036164,2]
[314554137,1708419058002,-500.0,0.00036164,2]
[314554138,1708419058011,-55.67398517,0.00036164,2]
[314554139,1708419058557,-650.61,0.00035616,2]
[314554140,1708419058566,-500.0,0.00035616,2]
[314554141,1708419058575,-650.61,0.0003589,2]
[314554142,1708419058584,-500.0,0.0003589,2]
[314554143,1708419058593,-444.32601483,0.00036164,2]
[314554144,1708419058602,-533.70358391,0.00036164,2]
[314554145,1708419058613,-500.0,0.00036164,2]
[314554146,1708419058622,-500.0,0.00036164,2]
[314554147,1708419058631,-500.0,0.00036164,2]
[314554148,1708419058640,-500.0,0.00036164,2]
[314554149,1708419058649,-500.0,0.00036164,2]
[314554150,1708419058658,-500.0,0.00036164,2]
[314554151,1708419058667,-500.0,0.00036164,2]
[314554152,1708419058676,-500.0,0.00036164,2]
[314554153,1708419058686,-500.0,0.00036164,2]
[314554154,1708419058695,-500.0,0.00036164,2]
[314554155,1708419058704,-500.0,0.00036164,2]
[314554156,1708419058713,-500.0,0.00036164,2]
[314554157,1708419058723,-500.0,0.00036164,2]
[314554158,1708419058732,-500.0,0.00036164,2]
[314554159,1708419058742,-500.0,0.00036164,2]
[314554160,1708419058751,-500.0,0.00036164,2]
[314554161,1708419058760,-521.98,0.00036164,2]
[314554162,1708419058770,-500.0,0.00036164,2]
[314554163,1708419058779,-500.0,0.00036164,2]
[314554164,1708419058790,-500.0,0.00036164,2]
[314554165,1708419058799,-500.0,0.00036164,2]
[314554166,1708419058809,-500.0,0.00036164,2]
[314554167,1708419058818,-500.0,0.00036164,2]
[314554168,1708419058827,-500.0,0.00036164,2]
[314554169,1708419058837,-500.0,0.00036164,2]
[314554170,1708419058846,-500.0,0.00036164,2]
[314554171,1708419058861,-500.0,0.00036164,2]
[314554172,1708419058870,-500.0,0.00036164,2]
[314554173,1708419058879,-500.0,0.00036164,2]
[314554174,1708419058888,-500.0,0.00036164,2]
[314554175,1708419058898,-500.0,0.00036164,2]
[314554176,1708419058907,-500.0,0.00036164,2]
[314554177,1708419058916,-500.0,0.00036164,2]
[314554178,1708419058926,-2093.16,0.00036164,2]
[314554179,1708419058935,-500.0,0.00036164,2]
[314554180,1708419058944,-662.62,0.00036164,2]
[314554181,1708419058953,-980.19,0.00036164,2]
[314554182,1708419058962,-529.59,0.00036164,2]
[314554183,1708419058971,-500.0,0.00036164,2]
[314554184,1708419058980,-500.0,0.00036164,2]
[314554185,1708419058989,-725.3,0.00036164,2]
[314554186,1708419058998,-525.74,0.00036164,2]
[314554187,1708419059189,-500.0,0.00036164,2]
[314554188,1708419059202,-1208.97,0.00036164,2]
[314554189,1708419059211,-500.0,0.00036164,2]
[314554190,1708419059220,-250.23979078,0.00036164,2]
[314554191,1708419059420,-249.76020922,0.00036164,2]
[314554192,1708419059430,-1243.9,0.00036164,2]
[314554193,1708419059439,-981.58787534,0.00036164,2]
[314554194,1708419059454,-1158.25594644,0.00035197,2]
[314554195,1708419059464,-2118.70212466,0.00036164,2]
[314554196,1708419059472,-500.0,0.00036164,2]
[314554197,1708419059481,-850.72,0.00036164,2]
[314554198,1708419059491,-500.0,0.00036164,2]
[314554199,1708419059500,-964.5,0.00036164,2]
[314554200,1708419059509,-500.0,0.00036164,2]
[314554201,1708419059518,-1212.25,0.00036164,2]
[314554202,1708419059527,-500.0,0.00036164,2]
[314554203,1708419059536,-500.0,0.00036164,2]
[314554204,1708419059545,-770.73748598,0.00036164,2]
[314554205,1708419059561,-763.33251402,0.00036164,2]
[314554206,1708419059570,-500.0,0.00036164,2]
[314554207,1708419059580,-500.0,0.00036164,2]
[314554208,1708419059589,-496.13529642,0.00036164,2]
[314554209,1708419059598,-600.24817138,0.00036164,2]
[314554210,1708419069980,138419.74959522,0.00023,2]
[314554211,1708419070002,57592.43843444,0.00023,2]